{"text_format":"1","workbook":"xlsx","n_sheets":1,"sheets":["ورقة1"],"not_rendered":{"charts":0,"images":0,"macros":1,"external_links":0,"defined_names":0,"comments":0,"pivot_tables":0},"unopened":[],"bounds":{"document_bytes":16777216,"sheet_cells":100000,"rows_first":2000,"rows_last":500,"rows_between":2000,"halvings":0,"cell_chars":16384,"cell_head_chars":4096},"cells_cut":0,"cells_raw":0,"read":"whole","date_system":"1900"}

{"sheet":"ورقة1","index":0,"n_rows":66,"n_cols":13,"rows_kept":66,"cut":false,"hidden":false,"merged":[]}
[]
[]
[]
[]
[]
[]
[]
[]
[]
[]
[]
[]
[]
[]
[]
[]
[]
[]
[null,null,null,null,null,null,null,null,"من","الى","عدد السنوات","عدد الأشهر","عدد الأيام"]
[null,null,null,null,null,null,null,null,"01/05/1438","11/02/1439",{"$f":"ContDate($I$20,$J$20,\"Y\")","v":0},{"$f":"ContDate($I$20,$J$20,\"M\")","v":9},{"$f":"ContDate($I$20,$J$20,\"D\")","v":10}]
[]
[]
[]
[]
[]
[]
[null,null,null,null,null,null,null,null,"1437/05/01","1440/05/01",null,null,{"$f":"ContDate($I$27,$J$27,\"y\")","v":3}]
[]
[]
[]
[null,null,null,null,null,null,null,null,null,null,null,null,{"$f":"ContDate(I27,J27,\"Y\")","v":3}]
[]
[]
[]
[]
[]
[]
[]
[]
[]
[]
[]
[]
[]
[]
[]
[]
[]
[]
[]
[null,null,null,null,null,null,null,null,null,null,"نفس العدد هنا لكن اذا زاد عن عشرين يساوي 20"]
[null,null,null,null,null,null,null,null,null,15,{"$f":"IF(J52>20,20,J52)","v":15}]
[null,null,null,null,null,null,null,null,null,30,{"$f":"IF(J53>20,20,J53)","v":20}]
[null,null,null,null,null,null,null,null,null,10,10]
[null,null,null,null,null,null,null,null,null,20,20]
[null,null,null,null,null,null,null,null,null,19,19]
[null,null,null,null,null,null,null,null,null,13,13]
[null,null,null,null,null,null,null,null,null,6,6]
[null,null,null,null,null,null,null,null,null,5,5]
[null,null,null,null,null,null,null,null,null,14,14]
[null,null,null,null,null,null,null,null,null,2,2]
[null,null,null,null,null,null,null,null,null,11,11]
[null,null,null,null,null,null,null,null,null,7,7]
[null,null,null,null,null,null,null,null,null,8,8]
[null,null,null,null,null,null,null,null,null,33,20]
[null,null,null,null,null,null,null,null,null,20,20]